bitfinex-derivatives/quotes_SOLF0:USTF0_20250509
["timestamp","ask_amount","ask_price","bid_price","bid_amount"]
[1746805130330,5.8848,169.92,169.89,5.8856]
[1746805130830,5.8848,169.92,169.85,1.9023]
[1746805130831,69.4,169.97,169.85,1.9023]
[1746805131732,34.74,169.97,169.85,1.9023]
[1746805131925,357.0,170.0,169.85,27.13341248]
[1746805132826,5.8827,169.98,169.85,27.13341248]
[1746805133932,362.8823,170.0,169.85,27.13341248]
[1746805134234,357.0,170.0,169.85,27.13341248]
[1746805134532,5.8828,169.98,169.85,27.13341248]
[1746805135128,5.8828,169.98,169.86,62.0]
[1746805135334,5.8828,169.98,169.87,38.5012]
[1746805135634,357.0,170.0,169.96,5.8831]
[1746805135836,34.64,170.03,169.96,5.8831]
[1746805136137,357.0,170.07,169.99,5.8823]
[1746805136336,357.0,170.07,169.94,1.8852]
[1746805137235,5.8807,170.04,170.01,5.8816]
[1746805137541,357.0,170.07,169.96,34.62]
[1746805137730,357.0,170.07,169.97,3.8603]
[1746805137933,357.0,170.07,169.98,34.6]
[1746805138331,357.0,170.07,170.01,5.8814]
[1746805138332,5.8805,170.05,170.01,5.8814]
[1746805138538,5.8805,170.05,169.98,34.6]
[1746805138738,357.0,170.14,169.98,34.6]
[1746805139037,34.6,170.12,169.98,34.6]
[1746805139536,5.8805,170.05,169.98,34.6]
[1746805139732,34.6,170.12,169.98,34.6]
[1746805140130,5.8802,170.06,170.02,5.8811]
[1746805140337,34.6,170.12,169.98,34.6]
[1746805141342,5.8795,170.08,170.03,5.8807]
[1746805141536,5.8795,170.08,170.01,34.58]
[1746805142143,69.18,170.12,169.97,29.09141248]
[1746805142342,69.18,170.12,169.98,69.18]
[1746805142642,69.18,170.12,170.02,5.881]
[1746805142839,5.8799,170.07,170.02,5.881]
[1746805143044,5.8799,170.07,170.03,5.8809]
[1746805143240,5.8799,170.07,169.98,69.18]
[1746805143436,69.18,170.12,169.98,69.18]
[1746805143641,69.18,170.12,170.04,5.8804]
[1746805143839,40.4779,170.12,169.98,34.58]
[1746805144046,40.4779,170.12,170.08,5.8792]
[1746805144242,34.6,170.12,170.09,1.17584808]
[1746805144448,5.8784,170.11,170.09,1.17584808]
[1746805144648,34.6,170.12,170.09,1.17584808]
[1746805144949,5.8786,170.1,170.09,1.17584808]
[1746805146444,5.8786,170.1,170.09,4.808e-05]
[1746805147744,5.8786,170.1,170.0,34.6]
[1746805147745,11.7586,170.1,170.0,34.6]
[1746805147954,5.881,170.03,170.01,1.17640138]
[1746805148246,34.6,170.07,170.01,1.17640138]
[1746805148547,5.8803,170.05,170.01,1.17640138]
[1746805148742,34.54,170.08,170.01,1.17640138]
[1746805148942,5.8801,170.06,170.02,5.8811]
[1746805149144,34.54,170.08,170.01,1.17640138]
[1746805149845,25.11842951,170.07,170.01,1.17640138]
[1746805150144,5.8813,170.02,170.01,1.38e-06]
[1746805150344,75.0213,170.02,170.01,1.38e-06]
[1746805150545,5.8839,169.95,169.92,3.9962]
[1746805150744,69.14,170.02,169.93,1.17695521]
[1746805152945,358.06499469,170.01,169.93,1.17695521]
[1746805153249,5.8841,169.94,169.93,1.17695521]
[1746805153946,5.8841,169.94,169.93,5.521e-05]
[1746805154346,25.11842951,169.95,169.91,3.66607]
[1746805154347,5.8848,169.92,169.91,3.66607]
[1746805154546,75.0048,169.92,169.91,3.66607]
[1746805154749,75.0048,169.92,169.91,7e-05]
[1746805154948,5.8872,169.86,169.79,3.8073]
[1746805155148,69.12,169.92,169.8,1.1778563]
[1746805155345,391.52,169.91,169.8,1.1778563]
[1746805155745,25.11842951,169.88,169.8,1.1778563]
[1746805156051,5.8886,169.81,169.8,1.1778563]
[1746805156252,69.12,169.81,169.72,5.8914]
[1746805156445,69.12,169.81,169.69,36.5658]
[1746805156654,25.11842951,169.84,169.69,36.5658]
[1746805156847,508.46,169.86,169.69,36.5658]
[1746805157049,5.8882,169.83,169.69,36.5658]
[1746805157351,69.12,169.85,169.69,36.5658]
[1746805157553,69.12,169.85,169.72,25.11842951]
[1746805157753,69.12,169.85,169.73,34.52]
[1746805157945,69.12,169.85,169.74,5.8909]
[1746805158252,69.12,169.85,169.73,34.52]
[1746805158449,69.12,169.85,169.73,40.4111]
[1746805158651,5.8892,169.8,169.73,40.4111]
[1746805158851,69.12,169.85,169.73,34.52]
[1746805159149,382.11842951,169.84,169.7,1.17855038]
[1746805159454,382.11842951,169.84,169.73,1.0]
[1746805159646,5.891,169.75,169.73,1.0]
[1746805159950,34.52,169.79,169.73,6.8911]
[1746805160147,5.8899,169.78,169.73,1.0]
[1746805160343,34.52,169.79,169.73,1.0]
[1746805160748,40.4096,169.79,169.74,5.891]
[1746805161153,34.52,169.79,169.73,1.0]
[1746805161355,5.891,169.74,169.73,1.0]
[1746805161957,5.8921,169.71,169.7,1.17855038]
[1746805162453,5.8921,169.71,169.7,5.038e-05]
[1746805163657,357.0,169.73,169.61,34.62]
[1746805163954,357.0,169.72,169.61,34.62]
[1746805164158,5.894,169.66,169.61,34.62]
[1746805164356,69.12,169.69,169.61,34.62]
[1746805164761,69.12,169.69,169.61,40.5153]
[1746805164955,69.12,169.69,169.57,5.7363]
[1746805165558,94.23842951,169.69,169.57,5.7363]
[1746805165853,5.8952,169.63,169.58,5.8963]
[1746805166059,94.23842951,169.69,169.57,5.7363]
[1746805166255,5.8951,169.63,169.57,11.6329]
[1746805166463,5.8951,169.63,169.57,3.7234]
[1746805166656,94.23842951,169.69,169.57,3.7234]
[1746805166959,1.06711042,169.68,169.57,9.6201]
[1746805167153,357.0,169.67,169.57,3.7234]
[1746805167355,357.0,169.67,169.53,36.4865]
[1746805167558,357.0,169.67,169.56,5.897]
[1746805167759,357.0,169.67,169.53,36.4865]
[1746805168162,25.11842951,169.65,169.52,34.5]
[1746805168457,69.0,169.64,169.5,34.5]
[1746805168762,25.11842951,169.61,169.49,3.9571]
[1746805169161,25.11842951,169.61,169.46,5.9007]
[1746805169162,5.899,169.52,169.46,5.9007]
[1746805169457,5.899,169.52,169.44,69.0]
[1746805169863,5.899,169.52,169.47,5.9002]
[1746805170062,69.0,169.55,169.44,34.5]
[1746805170764,357.0,169.54,169.41,34.5]
[1746805171664,362.8982,169.54,169.41,34.5]
[1746805171864,362.8982,169.54,169.49,5.8996]
[1746805172457,357.0,169.63,169.46,34.5]
[1746805172662,69.02,169.62,169.46,36.3244]
[1746805172858,70.08743767,169.62,169.47,3.8704]
[1746805173069,26.18586718,169.61,169.47,3.8704]
[1746805173271,5.897,169.57,169.47,3.8704]
[1746805173564,69.02,169.57,169.5,5.8994]
[1746805174064,5.8976,169.56,169.5,5.8994]
[1746805174263,69.02,169.57,169.5,5.8994]
[1746805174566,94.13842951,169.57,169.45,34.52]
[1746805175362,357.0,169.56,169.42,34.5]
[1746805175862,357.0,169.56,169.45,5.9008]
[1746805176266,5.8993,169.51,169.42,34.5]
[1746805176467,34.48,169.53,169.42,34.5]
[1746805176667,391.48,169.56,169.42,34.5]
[1746805176861,391.48,169.56,169.47,5.9004]
[1746805177061,391.48,169.56,169.42,34.5]
[1746805177467,5.8977,169.55,169.5,5.8991]
[1746805177666,34.48,169.56,169.47,34.48]
[1746805178868,34.48,169.56,169.42,69.02]
[1746805179662,5.9003,169.48,169.43,5.9015]
[1746805180168,357.0,169.55,169.42,69.02]
[1746805180766,357.0,169.55,169.44,5.9014]
[1746805180962,357.0,169.55,169.42,69.02]
[1746805181868,5.8999,169.49,169.44,5.9014]
[1746805182168,357.0,169.55,169.42,69.02]
[1746805183062,5.8986,169.53,169.42,69.02]
[1746805183264,357.0,169.55,169.42,69.02]
[1746805183463,357.0,169.55,169.44,25.11842951]
[1746805183668,5.8977,169.55,169.51,5.8988]
[1746805183969,34.46,169.59,169.49,69.0]
[1746805184168,34.46,169.59,169.5,3.8722]
[1746805184369,5.8975,169.56,169.5,3.8722]
[1746805184566,34.54,169.61,169.5,3.8722]
[1746805184869,5.8977,169.55,169.52,5.8986]
[1746805185168,34.54,169.61,169.5,5.8401]
[1746805185367,34.54,169.61,169.55,5.8974]
[1746805185669,34.54,169.61,169.5,5.8401]
[1746805185870,5.8975,169.56,169.52,5.8986]
[1746805186168,5.8975,169.56,169.5,5.8401]
[1746805186371,5.8967,169.58,169.54,5.8978]
[1746805186671,34.54,169.61,169.5,5.8401]
[1746805187670,5.8975,169.56,169.52,5.8984]
[1746805187867,34.54,169.61,169.5,5.8401]
[1746805188062,34.54,169.61,169.5,3.8722]
[1746805188264,357.0,169.6,169.5,3.8722]
[1746805188463,357.0,169.6,169.45,74.8832]
[1746805188662,25.11842951,169.59,169.45,40.4432]
[1746805188872,34.44,169.58,169.45,40.4432]
[1746805189071,35.50763707,169.58,169.45,40.4432]
[1746805189270,5.8992,169.51,169.47,5.9004]
[1746805189461,5.8992,169.51,169.45,40.4432]
[1746805189865,34.54,169.54,169.45,40.4432]
[1746805190360,5.8978,169.55,169.51,5.8988]
[1746805190565,68.96,169.58,169.45,40.4432]
[1746805190865,5.8981,169.54,169.5,5.8991]
[1746805191066,68.96,169.58,169.45,40.4432]
[1746805191471,5.8976,169.55,169.45,40.4432]
[1746805191864,357.0,169.6,169.45,40.4432]
[1746805192072,5.8962,169.59,169.47,25.11842951]
[1746805192269,68.96,169.63,169.48,34.42]
[1746805192571,5.8977,169.55,169.48,34.42]
[1746805192868,68.96,169.63,169.48,34.42]
[1746805193063,68.96,169.63,169.51,5.8989]
[1746805193370,68.96,169.63,169.49,68.96]
[1746805193870,357.0,169.62,169.46,1.18021952]
[1746805194069,25.26489018,169.56,169.46,1.18021952]
[1746805194270,68.94,169.55,169.46,1.18021952]
[1746805194472,5.9001,169.49,169.46,7.08091952]
[1746805194673,34.4,169.55,169.46,1.18021952]
[1746805194872,5.8989,169.52,169.46,1.18021952]
[1746805195073,34.4,169.55,169.46,1.18021952]
[1746805197370,34.54,169.56,169.46,1.18021952]
[1746805197569,357.0,169.59,169.46,26.4451097]
[1746805198063,362.8963,169.59,169.56,5.8971]
[1746805198267,5.8963,169.59,169.56,5.8971]
[1746805198968,34.38,169.64,169.53,36.3565]
[1746805199174,34.38,169.64,169.54,1.9149]
[1746805199370,34.4,169.65,169.54,1.9149]
[1746805200273,11.785,169.7,169.54,1.9149]
[1746805200274,68.78,169.7,169.54,27.17979018]
[1746805200474,5.8932,169.68,169.65,5.8941]
[1746805200869,68.78,169.7,169.61,34.4]
[1746805201068,5.8944,169.65,169.61,34.4]
[1746805201374,68.78,169.7,169.61,34.4]
[1746805201765,94.04489018,169.7,169.54,36.3149]
[1746805201965,357.0,169.69,169.54,36.3149]
[1746805202172,357.0,169.69,169.58,5.8966]
[1746805202470,357.0,169.69,169.54,36.3149]
[1746805202670,25.26489018,169.66,169.54,36.3149]
[1746805202870,68.76,169.65,169.54,1.9149]
[1746805203774,80.5484,169.65,169.5,68.76]
[1746805203966,80.5484,169.65,169.5,70.6897]
[1746805204170,1.06728359,169.64,169.51,1.17987139]
[1746805204368,68.76,169.65,169.51,1.17987139]
[1746805204766,5.8965,169.59,169.54,5.8977]
[1746805205065,68.76,169.65,169.51,1.17987139]
[1746805205265,5.8956,169.61,169.57,5.8969]
[1746805205472,68.76,169.65,169.51,1.17987139]
[1746805205774,68.76,169.65,169.53,5.8982]
[1746805206277,68.76,169.65,169.51,1.17987139]
[1746805206479,5.8966,169.58,169.54,5.8979]
[1746805206975,34.4,169.65,169.51,1.17987139]
[1746805207272,34.38,169.69,169.56,25.26489018]
[1746805207477,5.8935,169.67,169.57,72.4869]
[1746805207780,68.72,169.72,169.58,1.8374]
[1746805207985,5.8935,169.67,169.62,5.8951]
[1746805208278,34.38,169.72,169.58,1.8374]
[1746805209078,34.38,169.72,169.64,5.8945]
[1746805209477,34.38,169.72,169.62,68.7]
[1746805210876,34.38,169.72,169.58,1.8374]
[1746805211080,59.64489018,169.72,169.6,5.8956]
[1746805211384,59.64489018,169.72,169.58,70.5174]
[1746805211582,5.8956,169.61,169.57,7.7515]
[1746805212077,68.68,169.65,169.57,1.8546]
[1746805212681,68.68,169.65,169.54,68.68]
[1746805212878,68.68,169.65,169.55,1.17959304]
[1746805213477,25.26489018,169.64,169.55,1.17959304]
[1746805213676,5.8973,169.56,169.55,1.17959304]
[1746805213983,34.3,169.59,169.55,1.17959304]
[1746805214177,34.38,169.6,169.55,1.17959304]
[1746805214981,5.8973,169.56,169.55,1.17959304]
[1746805215585,5.897,169.57,169.55,1.17959304]
[1746805215778,34.38,169.6,169.55,1.17959304]
[1746805216275,5.8973,169.56,169.55,1.17959304]
[1746805217084,34.38,169.6,169.48,40.28]
[1746805217580,34.38,169.6,169.48,34.38]
[1746805218081,34.38,169.6,169.47,3.9222]
[1746805218480,5.8993,169.51,169.41,509.56]
[1746805218784,68.66,169.55,169.42,38.2175]
[1746805219084,5.8996,169.5,169.42,38.2175]
[1746805219282,68.66,169.55,169.42,38.2175]
[1746805221080,5.8999,169.49,169.42,38.2175]
[1746805221275,68.66,169.55,169.42,38.2175]
[1746805221493,68.66,169.55,169.42,34.38]
[1746805221685,5.9008,169.46,169.42,34.38]
[1746805221889,68.66,169.5,169.42,34.38]
[1746805222189,34.4,169.5,169.42,34.38]
[1746805222586,34.4,169.5,169.41,1.0]
[1746805223089,34.26,169.52,169.36,1.0]
[1746805223090,25.30509748,169.44,169.36,1.0]
[1746805223388,68.66,169.43,169.36,1.0]
[1746805223585,68.66,169.43,169.36,0.0001]
[1746805224283,5.9039,169.37,169.36,0.0001]
[1746805224585,74.5639,169.37,169.36,0.0001]
[1746805225585,34.4,169.37,169.36,0.0001]
[1746805225785,34.26,169.39,169.36,0.0001]
[1746805226082,34.26,169.41,169.36,0.0001]
[1746805226281,5.9029,169.4,169.36,0.0001]
[1746805226487,34.26,169.43,169.36,5.9041]
[1746805226883,5.9026,169.41,169.36,5.9041]
[1746805227079,34.26,169.43,169.36,0.0001]
[1746805227887,5.9025,169.41,169.36,0.0001]
[1746805228080,34.26,169.43,169.36,0.0001]
[1746805228887,5.9031,169.4,169.36,5.9041]
[1746805230589,5.9033,169.39,169.36,0.0001]
[1746805230784,34.26,169.45,169.36,0.0001]
[1746805231084,34.26,169.45,169.36,34.2401]
[1746805231289,5.9022,169.42,169.36,34.2401]
[1746805231492,34.26,169.45,169.36,34.2401]
[1746805231893,5.9025,169.41,169.37,5.9038]
[1746805232192,5.9025,169.41,169.36,34.2401]
[1746805232393,34.26,169.45,169.36,34.2401]
[1746805233192,5.9028,169.41,169.36,40.144]
[1746805233586,34.26,169.45,169.36,0.0001]
[1746805234387,5.9019,169.43,169.36,0.0001]
[1746805234694,34.26,169.45,169.37,34.24]
[1746805234986,5.9012,169.45,169.41,5.9022]
[1746805235391,5.9012,169.45,169.4,5.9027]
[1746805235590,935.18,169.49,169.37,36.2607]
[1746805235792,578.18,169.49,169.37,36.2607]
[1746805236996,5.9011,169.45,169.37,36.2607]
[1746805237494,5.9006,169.47,169.37,36.2607]
[1746805237696,357.0,169.54,169.37,36.2607]
[1746805237898,357.0,169.54,169.39,25.30509748]
[1746805238094,357.0,169.54,169.4,3.7307]
[1746805238294,357.0,169.54,169.41,34.26]
[1746805238593,357.0,169.54,169.42,34.22]
[1746805238798,357.0,169.54,169.41,34.26]
[1746805239094,357.0,169.54,169.42,34.22]
[1746805239794,5.8997,169.5,169.42,34.22]
[1746805239995,357.0,169.54,169.42,34.22]
[1746805240297,5.8998,169.49,169.42,34.22]
[1746805240596,357.0,169.54,169.4,3.7307]
[1746805240796,382.30509748,169.54,169.41,34.26]
[1746805241003,382.30509748,169.54,169.44,5.9014]
[1746805241290,382.30509748,169.54,169.41,34.26]
[1746805241497,5.9015,169.44,169.41,34.26]
[1746805241695,382.30509748,169.54,169.41,34.26]
[1746805241891,5.9012,169.45,169.41,40.1624]
[1746805242096,382.30509748,169.54,169.41,34.26]
[1746805242292,34.2,169.53,169.41,34.26]
[1746805242495,34.2,169.53,169.43,5.9018]
[1746805242699,34.2,169.53,169.41,34.26]
[1746805243100,391.18,169.54,169.41,34.26]
[1746805243502,391.18,169.54,169.42,5.902]
[1746805243799,391.18,169.54,169.41,34.26]
[1746805244000,5.8995,169.5,169.46,5.9007]
[1746805244399,391.18,169.54,169.41,34.26]
[1746805244600,391.18,169.54,169.45,5.9011]
[1746805244790,391.18,169.54,169.41,34.26]
[1746805245096,5.9,169.49,169.45,5.9009]
[1746805245401,391.18,169.54,169.41,34.26]
[1746805245696,25.30509748,169.52,169.37,36.2807]
[1746805246000,357.0,169.51,169.37,34.26]
[1746805246201,5.9029,169.4,169.37,34.26]
[1746805246398,34.26,169.44,169.36,0.0001]
[1746805246699,5.9039,169.37,169.36,0.0001]
[1746805249902,74.3236,169.38,169.36,0.0001]
[1746805250100,40.1636,169.38,169.36,0.0001]
[1746805250301,357.0,169.47,169.36,0.0001]
[1746805250507,69.48851912,169.46,169.36,0.0001]
[1746805250800,68.42,169.46,169.36,0.0001]
[1746805250998,68.42,169.46,169.36,3.8439]
[1746805251201,68.42,169.46,169.37,34.26]
[1746805251403,68.42,169.51,169.43,5.9015]
[1746805251600,68.42,169.51,169.4,34.16]
[1746805252704,5.9002,169.48,169.42,5.9018]
[1746805252899,5.9002,169.48,169.4,34.16]
[1746805252900,68.42,169.51,169.4,34.16]
[1746805253807,68.42,169.51,169.42,5.9019]
[1746805253996,68.42,169.51,169.4,34.16]
[1746805255309,5.9021,169.43,169.4,34.16]
[1746805255505,5.9021,169.43,169.38,5.9035]
[1746805255809,34.14,169.46,169.37,34.26]
[1746805256106,68.28,169.46,169.37,34.26]
[1746805256303,68.28,169.46,169.36,3.8439]
[1746805256508,25.30509748,169.52,169.36,3.8439]
[1746805256710,69.34813907,169.51,169.36,3.8439]
[1746805256913,5.901,169.46,169.41,5.9024]
[1746805257111,68.28,169.51,169.39,34.14]
[1746805257706,5.9017,169.44,169.4,5.9028]
[1746805258009,68.28,169.51,169.39,34.14]
[1746805258513,34.14,169.51,169.4,34.14]
[1746805259310,34.14,169.51,169.42,5.902]
[1746805259509,34.14,169.51,169.4,34.14]
[1746805259812,5.901,169.46,169.4,34.14]
[1746805260409,5.901,169.46,169.42,5.9019]
[1746805260811,5.9017,169.44,169.4,34.14]
[1746805261006,34.14,169.51,169.37,1.9539]
[1746805261410,5.9028,169.41,169.37,1.9539]
[1746805261612,34.12,169.47,169.37,7.8575]
[1746805261807,34.12,169.47,169.37,1.9539]
[1746805262009,34.14,169.46,169.37,1.9539]
[1746805262214,34.14,169.46,169.36,0.0001]
[1746805262404,5.9039,169.37,169.36,0.0001]
[1746805262608,34.12,169.42,169.36,0.0001]
[1746805262907,357.0,169.46,169.36,0.0001]
[1746805263112,391.14,169.46,169.36,0.0001]
[1746805263713,357.0,169.46,169.42,5.902]
[1746805263911,34.14,169.5,169.37,74.0]
[1746805264617,5.9025,169.42,169.37,74.0]
[1746805264910,34.14,169.5,169.37,74.0]
[1746805265115,5.9031,169.4,169.37,74.0]
[1746805265318,34.1,169.46,169.37,39.9]
[1746805265511,34.1,169.46,169.39,5.9031]
[1746805265711,5.9022,169.42,169.39,5.9031]
[1746805266708,34.1,169.46,169.37,39.9]
[1746805266914,34.1,169.46,169.37,38.0455]
[1746805267220,5.9032,169.39,169.37,1.9549]
[1746805267413,34.14,169.45,169.36,0.0001]
[1746805267714,25.30509748,169.43,169.36,0.0001]
[1746805267923,5.9039,169.37,169.36,0.0001]
[1746805268915,5.9063,169.31,169.25,40.0478]
[1746805269120,5.9063,169.31,169.25,34.14]
[1746805269617,5.9063,169.31,169.27,5.9073]
[1746805269820,5.9056,169.32,169.27,5.9073]
[1746805270625,5.9056,169.32,169.25,34.14]
[1746805271021,68.24,169.35,169.25,34.14]
[1746805272925,5.9062,169.31,169.27,5.9073]
[1746805273327,5.9062,169.31,169.28,5.907]
[1746805273622,357.0,169.42,169.25,34.14]
[1746805273823,357.0,169.47,169.32,25.30509748]
[1746805274021,357.0,169.47,169.33,73.886]
[1746805274423,5.9027,169.41,169.37,5.9037]
[1746805274623,357.0,169.47,169.37,34.08]
[1746805275326,357.0,169.47,169.36,34.08]
[1746805275517,34.08,169.46,169.36,34.08]
[1746805275717,34.14,169.45,169.33,3.7261]
[1746805276230,34.14,169.45,169.31,578.46]
[1746805276528,382.30509748,169.44,169.29,1.9399]
[1746805276729,5.9053,169.33,169.28,74.1068]
[1746805276927,34.14,169.39,169.28,68.2]
[1746805277128,34.14,169.39,169.28,74.1068]
[1746805277825,5.9055,169.33,169.28,74.1068]
[1746805278027,34.14,169.39,169.28,74.1068]
[1746805278424,34.14,169.39,169.28,68.2]
[1746805278729,391.14,169.43,169.28,93.50509748]
[1746805279031,425.2,169.43,169.28,93.50509748]
[1746805279427,5.9046,169.35,169.28,93.50509748]
[1746805279626,5.9046,169.35,169.3,5.906]
[1746805279826,5.9046,169.35,169.3,34.06]
[1746805280129,425.2,169.43,169.3,34.06]
[1746805280529,1.0686429,169.42,169.3,34.06]
[1746805281328,391.14,169.43,169.3,34.06]
[1746805282131,357.0,169.43,169.32,25.30509748]
[1746805282326,34.14,169.47,169.33,39.8149]
[1746805282527,5.902,169.43,169.39,5.903]
[1746805282724,34.14,169.47,169.38,34.14]
[1746805282931,34.14,169.47,169.39,34.14]
[1746805283528,357.0,169.5,169.39,34.14]
[1746805283729,5.9017,169.44,169.4,5.9028]
[1746805284028,357.0,169.5,169.39,34.14]
[1746805285330,5.901,169.46,169.42,5.902]
[1746805285529,5.901,169.46,169.42,39.942]
[1746805285730,357.0,169.5,169.42,39.942]
[1746805286127,357.0,169.5,169.36,25.30509748]
[1746805286329,5.9025,169.42,169.37,68.06]
[1746805286629,34.02,169.48,169.34,68.04]
[1746805286833,5.9043,169.36,169.33,516.9349]
[1746805287027,34.02,169.47,169.33,516.9349]
[1746805287534,5.9036,169.38,169.33,516.9349]
[1746805288334,5.9032,169.39,169.33,516.9349]
[1746805288523,34.02,169.47,169.33,516.9349]
[1746805288930,5.9032,169.4,169.36,5.904]
[1746805289128,34.02,169.47,169.36,5.904]
[1746805289332,34.02,169.47,169.33,516.9349]
[1746805289624,34.02,169.46,169.33,516.9349]
[1746805290434,5.9031,169.4,169.33,516.9349]
[1746805290742,34.02,169.46,169.33,516.9349]
[1746805290931,5.9021,169.43,169.33,516.9349]
[1746805291125,34.02,169.46,169.33,542.23999748]
[1746805291535,34.02,169.46,169.33,516.9349]
[1746805291734,34.02,169.46,169.33,584.9549]
[1746805292528,5.9034,169.39,169.33,584.9549]
[1746805292831,357.0,169.5,169.33,6.6749]
[1746805293140,25.30509748,169.46,169.33,4.7173]
[1746805293434,37.10709748,169.46,169.33,4.7173]
[1746805293624,1.06853618,169.45,169.33,4.7173]
[1746805293826,68.02,169.44,169.33,4.7173]
[1746805294829,68.02,169.44,169.34,68.02]
[1746805295234,68.02,169.48,169.39,5.9029]
[1746805295532,68.02,169.48,169.34,68.02]
[1746805296335,5.9035,169.39,169.35,5.9044]
[1746805296533,68.02,169.48,169.34,68.02]
[1746805296935,1.06836292,169.47,169.34,68.02]
[1746805297134,25.30509748,169.45,169.33,1.0]
[1746805297531,5.9049,169.34,169.33,1.0]
[1746805298039,5.9049,169.34,169.33,0.0001]
[1746805299234,11.8049,169.34,169.33,0.0001]
[1746805299431,357.0,169.33,169.2,6.81877099]
[1746805299630,450.30509748,169.32,169.2,6.81877099]
[1746805299826,33.98,169.31,169.2,6.81877099]
[1746805300432,5.9079,169.26,169.2,6.81877099]
[1746805300632,34.02,169.27,169.2,6.81877099]
[1746805301034,5.9084,169.25,169.2,6.81877099]
[1746805301239,34.02,169.27,169.2,6.81877099]
[1746805301240,33.98,169.26,169.2,6.81877099]
[1746805301635,25.30509748,169.24,169.1,1.9235]
[1746805301841,25.30509748,169.24,169.11,3.9593]
[1746805302140,357.0,169.23,169.07,68.0]
[1746805302333,34.02,169.22,169.07,34.02]
[1746805302541,33.98,169.21,169.07,34.02]
[1746805302840,35.04980972,169.21,169.07,34.02]
[1746805303039,33.98,169.21,169.12,5.9123]
[1746805303239,33.98,169.21,169.06,95.47874661]
[1746805303439,25.30509748,169.19,169.06,27.45874661]
[1746805303830,1.06934719,169.18,169.06,27.45874661]
[1746805304035,34.04,169.17,169.08,5.9138]
[1746805304341,68.02,169.17,169.06,27.45874661]
[1746805304537,68.02,169.17,169.07,5.9143]
[1746805304737,68.02,169.17,169.06,27.45874661]
[1746805305237,68.02,169.17,169.06,33.37344661]
[1746805305639,68.02,169.17,169.06,27.45874661]
[1746805306137,5.9119,169.15,169.06,27.45874661]
[1746805306338,68.02,169.17,169.06,27.45874661]
[1746805306538,68.02,169.17,169.05,3.8362]
[1746805308442,5.9139,169.09,169.05,3.8362]
[1746805308636,68.04,169.12,169.01,154.558084]
[1746805308940,68.04,169.12,169.02,3.9436]
[1746805309542,34.06,169.12,169.02,3.9436]
[1746805309944,34.06,169.12,169.03,5.9157]
[1746805309945,5.9139,169.09,169.03,5.9157]
[1746805310141,5.9139,169.09,169.02,3.9436]
[1746805310338,34.06,169.12,169.02,3.9436]
[1746805310643,5.9151,169.05,169.02,3.9436]
[1746805310940,34.0,169.09,169.02,3.9436]
[1746805311337,34.0,169.09,168.98,34.06]
[1746805311537,5.9155,169.04,168.99,5.9172]